[Event "Early-Titled-Tuesday-Blitz-June-18-2024"]
[Site "Chess.com"]
[Date "2024.06.18"]
[Round "1"]
[White "Dr_Pepper18"]
[Black "Individoom"]
[Result "1-0"]
[WhiteElo "2481"]
[BlackElo "2786"]
[TimeControl "180+1"]
[EndTime "8:08:43 PDT"]
[Termination "Dr_Pepper18 won by resignation"]

1. d4 {[%clk 0:02:59.3]} 1... Nf6 {[%clk 0:02:19.3]} 2. c4 {[%clk 0:02:58.1]}
2... g6 {[%clk 0:02:18.9]} 3. Nc3 {[%clk 0:02:57]} 3... Bg7 {[%clk 0:02:09.3]}
4. e4 {[%clk 0:02:55.9]} 4... d6 {[%clk 0:02:09.5]} 5. Be2 {[%clk 0:02:55.9]}
5... O-O {[%clk 0:02:08.4]} 6. Be3 {[%clk 0:02:55.6]} 6... e5 {[%clk 0:02:08.5]}
7. d5 {[%clk 0:02:55.8]} 7... Na6 {[%clk 0:02:08.7]} 8. g4 {[%clk 0:02:56.4]}
8... Nc5 {[%clk 0:02:07.7]} 9. f3 {[%clk 0:02:56.5]} 9... a5 {[%clk 0:02:06.7]}
10. h4 {[%clk 0:02:55.7]} 10... c6 {[%clk 0:02:05.6]} 11. Nh3 {[%clk 0:02:38]}
11... cxd5 {[%clk 0:02:03.1]} 12. cxd5 {[%clk 0:02:37.8]} 12... Bd7 {[%clk
0:02:02]} 13. Nf2 {[%clk 0:02:31.1]} 13... a4 {[%clk 0:02:01.2]} 14. Rb1 {[%clk
0:02:23]} 14... Qa5 {[%clk 0:01:54.5]} 15. Qd2 {[%clk 0:02:01]} 15... Rfc8
{[%clk 0:01:46.2]} 16. O-O {[%clk 0:01:12.1]} 16... b5 {[%clk 0:01:42.5]} 17.
Rfc1 {[%clk 0:00:15.6]} 17... Ne8 {[%clk 0:01:21.1]} 18. Ncd1 {[%clk 0:00:11]}
18... Qxd2 {[%clk 0:01:14]} 19. Bxd2 {[%clk 0:00:11.1]} 19... Bf6 {[%clk
0:01:14.4]} 20. h5 {[%clk 0:00:08.2]} 20... Bh4 {[%clk 0:01:08.2]} 21. Bb4
{[%clk 0:00:06.4]} 21... Bg5 {[%clk 0:01:06.7]} 22. Rc2 {[%clk 0:00:05]} 22...
gxh5 {[%clk 0:01:00.4]} 23. gxh5 {[%clk 0:00:05]} 23... Nf6 {[%clk 0:01:00.1]}
24. Kh1 {[%clk 0:00:04.3]} 24... Nxh5 {[%clk 0:00:58.7]} 25. Nc3 {[%clk
0:00:05]} 25... Ng3+ {[%clk 0:00:48.7]} 26. Kg2 {[%clk 0:00:05.3]} 26... Nxe2
{[%clk 0:00:49]} 27. Rxe2 {[%clk 0:00:06.2]} 27... Kh8 {[%clk 0:00:47.7]} 28.
Rg1 {[%clk 0:00:05.9]} 28... Rg8 {[%clk 0:00:46.3]} 29. Kf1 {[%clk 0:00:06.4]}
29... Bf4 {[%clk 0:00:44.2]} 30. Rxg8+ {[%clk 0:00:05.5]} 30... Rxg8 {[%clk
0:00:43.5]} 31. Rc2 {[%clk 0:00:06.1]} 31... Rg3 {[%clk 0:00:42.5]} 32. Ne2
{[%clk 0:00:06.2]} 32... Rxf3 {[%clk 0:00:41.1]} 33. Nxf4 {[%clk 0:00:06.6]}
33... Rxf4 {[%clk 0:00:39.1]} 34. Bxc5 {[%clk 0:00:07.5]} 34... dxc5 {[%clk
0:00:39.3]} 35. Rxc5 {[%clk 0:00:08.4]} 35... Kg7 {[%clk 0:00:29]} 36. Rc7
{[%clk 0:00:08.5]} 36... Bh3+ {[%clk 0:00:20]} 37. Kg1 {[%clk 0:00:06.6]} 37...
Rf3 {[%clk 0:00:13.6]} 38. d6 {[%clk 0:00:06.4]} 38... Rg3+ {[%clk 0:00:13.3]}
39. Kh1 {[%clk 0:00:06.5]} 39... Be6 {[%clk 0:00:11.8]} 40. d7 {[%clk
0:00:05.6]} 40... Bxd7 {[%clk 0:00:11.7]} 41. Rxd7 {[%clk 0:00:06.1]} 41... Re3
{[%clk 0:00:11.9]} 42. Kg2 {[%clk 0:00:04.8]} 42... Re2 {[%clk 0:00:12.1]} 43.
Kf3 {[%clk 0:00:04.9]} 43... Rxb2 {[%clk 0:00:12.1]} 44. Ng4 {[%clk 0:00:05.8]}
44... Rxa2 {[%clk 0:00:10.1]} 45. Nxe5 {[%clk 0:00:06.2]} 45... b4 {[%clk
0:00:10.5]} 46. Rxf7+ {[%clk 0:00:06.2]} 46... Kg8 {[%clk 0:00:10.9]} 47. Rb7
{[%clk 0:00:06.9]} 47... b3 {[%clk 0:00:11.2]} 48. Nc4 {[%clk 0:00:07]} 48...
Rc2 {[%clk 0:00:11]} 49. Ne3 {[%clk 0:00:06.9]} 49... Rc3 {[%clk 0:00:10.8]} 50.
e5 {[%clk 0:00:06.5]} 50... a3 {[%clk 0:00:11]} 51. e6 {[%clk 0:00:07.1]} 51...
a2 {[%clk 0:00:10.8]} 52. Rb8+ {[%clk 0:00:07.7]} 52... Kg7 {[%clk 0:00:10.4]}
53. e7 {[%clk 0:00:08.4]} 53... Rxe3+ {[%clk 0:00:09]} 54. Kxe3 {[%clk
0:00:08.4]} 54... a1=Q {[%clk 0:00:09.6]} 55. e8=Q {[%clk 0:00:09.1]} 55... Qe1+
{[%clk 0:00:09.9]} 56. Kd4 {[%clk 0:00:09.7]} 56... Qd2+ {[%clk 0:00:10]} 57.
Ke5 {[%clk 0:00:09.6]} 57... Qe3+ {[%clk 0:00:09.7]} 58. Kd6 {[%clk 0:00:10.2]}
58... Qd4+ {[%clk 0:00:09.9]} 59. Ke7 {[%clk 0:00:10.8]} 59... Qe5+ {[%clk
0:00:09.9]} 60. Kd7 {[%clk 0:00:11.2]} 60... Qd5+ {[%clk 0:00:10]} 61. Kc8
{[%clk 0:00:10.7]} 61... Qc5+ {[%clk 0:00:08.9]} 62. Kd8 {[%clk 0:00:09.8]}
62... Qd6+ {[%clk 0:00:08.4]} 63. Qd7+ {[%clk 0:00:10.3]} 63... Qxd7+ {[%clk
0:00:08.6]} 64. Kxd7 {[%clk 0:00:11.2]} 64... Kg6 {[%clk 0:00:08.7]} 65. Rxb3
{[%clk 0:00:11.7]} 65... Kg5 {[%clk 0:00:09.1]} 66. Ke6 {[%clk 0:00:12.6]} 66...
h5 {[%clk 0:00:09.1]} 67. Ke5 {[%clk 0:00:12.9]} 67... Kg4 {[%clk 0:00:09.1]}
68. Rb4+ {[%clk 0:00:11.9]} 68... Kg3 {[%clk 0:00:09]} 69. Kf5 {[%clk
0:00:08.6]} 69... h4 {[%clk 0:00:09.2]} 70. Rb3+ {[%clk 0:00:09.3]} 70... Kg2
{[%clk 0:00:09.1]} 71. Kg4 {[%clk 0:00:10.2]} 71... h3 {[%clk 0:00:09]} 72. Rxh3
{[%clk 0:00:10.9]} 1-0

[Event "Early-Titled-Tuesday-Blitz-June-18-2024"]
[Site "Chess.com"]
[Date "2024.06.18"]
[Round "1"]
[White "Heliosis11"]
[Black "Bob_2004"]
[Result "0-1"]
[WhiteElo "2425"]
[BlackElo "2760"]
[TimeControl "180+1"]
[EndTime "8:08:47 PDT"]
[Termination "Bob_2004 won on time"]

1. e4 {[%clk 0:02:58.5]} 1... c5 {[%clk 0:03:00.2]} 2. Nf3 {[%clk 0:02:58.5]}
2... Nf6 {[%clk 0:02:58.9]} 3. e5 {[%clk 0:02:51.8]} 3... Nd5 {[%clk 0:02:54]}
4. Nc3 {[%clk 0:02:44]} 4... Nxc3 {[%clk 0:02:54.1]} 5. dxc3 {[%clk 0:02:41.8]}
5... Nc6 {[%clk 0:02:54.6]} 6. Bd3 {[%clk 0:02:41.6]} 6... d5 {[%clk 0:02:53.5]}
7. exd6 {[%clk 0:02:42.5]} 7... exd6 {[%clk 0:02:53.7]} 8. O-O {[%clk
0:02:43.4]} 8... Be7 {[%clk 0:02:53.9]} 9. Re1 {[%clk 0:02:43.9]} 9... O-O
{[%clk 0:02:54.1]} 10. h3 {[%clk 0:02:39.4]} 10... Be6 {[%clk 0:02:53.3]} 11.
Bf4 {[%clk 0:02:38.9]} 11... Re8 {[%clk 0:02:42.8]} 12. Qd2 {[%clk 0:02:36.1]}
12... Qd7 {[%clk 0:02:28.6]} 13. Rad1 {[%clk 0:02:35]} 13... Rad8 {[%clk
0:02:19.2]} 14. Ng5 {[%clk 0:02:22.4]} 14... Bf5 {[%clk 0:02:11.2]} 15. Bxf5
{[%clk 0:02:11.5]} 15... Qxf5 {[%clk 0:02:12.1]} 16. Nf3 {[%clk 0:02:02]} 16...
d5 {[%clk 0:02:01.5]} 17. Ne5 {[%clk 0:01:50.6]} 17... Bf8 {[%clk 0:01:28.9]}
18. g4 {[%clk 0:01:38.6]} 18... Qc8 {[%clk 0:00:54.2]} 19. Nxc6 {[%clk
0:01:33.2]} 19... bxc6 {[%clk 0:00:51.8]} 20. Bg3 {[%clk 0:01:28.6]} 20... h5
{[%clk 0:00:41.1]} 21. Qg5 {[%clk 0:01:23.2]} 21... hxg4 {[%clk 0:00:41.2]} 22.
hxg4 {[%clk 0:01:22.9]} 22... Rxe1+ {[%clk 0:00:36.5]} 23. Rxe1 {[%clk
0:01:21.5]} 23... Re8 {[%clk 0:00:37.4]} 24. Rxe8 {[%clk 0:01:10.3]} 24... Qxe8
{[%clk 0:00:38.3]} 25. Qe5 {[%clk 0:01:10.8]} 25... Qd7 {[%clk 0:00:33.7]} 26.
f3 {[%clk 0:01:09.7]} 26... f6 {[%clk 0:00:30.4]} 27. Qc7 {[%clk 0:01:08]} 27...
Qxc7 {[%clk 0:00:28.9]} 28. Bxc7 {[%clk 0:01:08.8]} 28... Kf7 {[%clk 0:00:29.8]}
29. Kf2 {[%clk 0:01:03.5]} 29... c4 {[%clk 0:00:29]} 30. b3 {[%clk 0:00:59.5]}
30... Bc5+ {[%clk 0:00:28.9]} 31. Ke2 {[%clk 0:00:59.9]} 31... Ke6 {[%clk
0:00:27]} 32. a4 {[%clk 0:00:55.2]} 32... f5 {[%clk 0:00:20.3]} 33. gxf5+ {[%clk
0:00:52.6]} 33... Kxf5 {[%clk 0:00:21.2]} 34. b4 {[%clk 0:00:51.8]} 34... Be7
{[%clk 0:00:20.6]} 35. a5 {[%clk 0:00:45.4]} 35... a6 {[%clk 0:00:20.7]} 36. Bb6
{[%clk 0:00:41]} 36... Kf4 {[%clk 0:00:18]} 37. Be3+ {[%clk 0:00:40.5]} 37...
Kg3 {[%clk 0:00:17.8]} 38. Bd4 {[%clk 0:00:40.5]} 38... Bf6 {[%clk 0:00:15.5]}
39. Bf2+ {[%clk 0:00:34.8]} 39... Kg2 {[%clk 0:00:14.6]} 40. Be1 {[%clk
0:00:35.1]} 40... Be5 {[%clk 0:00:14.5]} 41. Bd2 {[%clk 0:00:34.9]} 41... Bf6
{[%clk 0:00:13.2]} 42. Ke3 {[%clk 0:00:31.3]} 42... Bg5+ {[%clk 0:00:13.1]} 43.
f4 {[%clk 0:00:28.7]} 43... Bf6 {[%clk 0:00:12.5]} 44. Be1 {[%clk 0:00:28.5]}
44... Kf1 {[%clk 0:00:12.7]} 45. Bd2 {[%clk 0:00:28.6]} 45... Kg2 {[%clk
0:00:12.8]} 46. Be1 {[%clk 0:00:28.7]} 46... g6 {[%clk 0:00:12.2]} 47. Bd2
{[%clk 0:00:28.7]} 47... Kg3 {[%clk 0:00:12.2]} 48. Be1+ {[%clk 0:00:28.5]}
48... Kg4 {[%clk 0:00:12.8]} 49. Bd2 {[%clk 0:00:28.9]} 49... Bg7 {[%clk
0:00:06.1]} 50. Kf2 {[%clk 0:00:27.1]} 50... Bh6 {[%clk 0:00:04.9]} 51. Be3
{[%clk 0:00:25.3]} 51... Bxf4 {[%clk 0:00:04.9]} 52. Bd4 {[%clk 0:00:26.2]}
52... Kh3 {[%clk 0:00:03]} 53. Kf3 {[%clk 0:00:25]} 53... Bd2 {[%clk 0:00:03.7]}
54. Ke2 {[%clk 0:00:25]} 54... Bc1 {[%clk 0:00:04.2]} 55. Kf3 {[%clk 0:00:25]}
55... g5 {[%clk 0:00:04.1]} 56. Be5 {[%clk 0:00:24.4]} 56... g4+ {[%clk
0:00:04.6]} 57. Kf2 {[%clk 0:00:24.8]} 57... Bg5 {[%clk 0:00:05]} 58. Bd4 {[%clk
0:00:18.2]} 58... Bf4 {[%clk 0:00:05.2]} 59. Kf1 {[%clk 0:00:18.1]} 59... g3
{[%clk 0:00:05.2]} 60. Ke2 {[%clk 0:00:15.1]} 60... Bg5 {[%clk 0:00:03.4]} 61.
Kf1 {[%clk 0:00:14.8]} 61... g2+ {[%clk 0:00:03.7]} 62. Ke1 {[%clk 0:00:02.9]}
62... Bf6 {[%clk 0:00:03.8]} 63. Bg1 {[%clk 0:00:01.7]} 63... Bxc3+ {[%clk
0:00:04.1]} 64. Ke2 {[%clk 0:00:01.8]} 64... Bxb4 {[%clk 0:00:04.7]} 65. Kf3
{[%clk 0:00:01.1]} 65... Bxa5 {[%clk 0:00:05.1]} 66. Kf4 {[%clk 0:00:01.5]}
66... Bc3 {[%clk 0:00:05.2]} 67. Kf3 {[%clk 0:00:01.2]} 67... Be5 {[%clk
0:00:05.5]} 68. Ke2 {[%clk 0:00:01.3]} 68... Bh2 {[%clk 0:00:05.7]} 69. Kf2
{[%clk 0:00:01]} 69... Bxg1+ {[%clk 0:00:05.6]} 70. Kxg1 {[%clk 0:00:01.9]}
70... c3 {[%clk 0:00:05.9]} 0-1

[Event "Early-Titled-Tuesday-Blitz-June-18-2024"]
[Site "Chess.com"]
[Date "2024.06.18"]
[Round "1"]
[White "Shiner22"]
[Black "chess123456s"]
[Result "0-1"]
[WhiteElo "2279"]
[BlackElo "2624"]
[TimeControl "180+1"]
[EndTime "8:08:47 PDT"]
[Termination "chess123456s won on time"]

1. e4 {[%clk 0:02:58.7]} 1... c5 {[%clk 0:02:59.4]} 2. d4 {[%clk 0:02:58.2]}
2... cxd4 {[%clk 0:02:59]} 3. c3 {[%clk 0:02:58.9]} 3... dxc3 {[%clk 0:02:56.1]}
4. Nxc3 {[%clk 0:02:59.8]} 4... Nc6 {[%clk 0:02:56.1]} 5. Nf3 {[%clk 0:02:59.9]}
5... d6 {[%clk 0:02:56.4]} 6. Bc4 {[%clk 0:02:59.6]} 6... a6 {[%clk 0:02:56.8]}
7. O-O {[%clk 0:02:58.6]} 7... Nf6 {[%clk 0:02:56.9]} 8. Be3 {[%clk 0:02:46.5]}
8... Bg4 {[%clk 0:02:54.2]} 9. Qb3 {[%clk 0:02:45.7]} 9... e6 {[%clk 0:02:41]}
10. Nd4 {[%clk 0:02:31.4]} 10... Nxd4 {[%clk 0:02:34.2]} 11. Bxd4 {[%clk
0:02:30.3]} 11... b5 {[%clk 0:02:33.8]} 12. Nxb5 {[%clk 0:02:10.4]} 12... axb5
{[%clk 0:02:31.4]} 13. Bxb5+ {[%clk 0:02:10.2]} 13... Nd7 {[%clk 0:02:30.6]} 14.
h3 {[%clk 0:02:01.1]} 14... e5 {[%clk 0:02:25.4]} 15. Bb6 {[%clk 0:02:00.3]}
15... Be6 {[%clk 0:02:05.5]} 16. Bxd8 {[%clk 0:01:48.6]} 16... Bxb3 {[%clk
0:02:04.2]} 17. axb3 {[%clk 0:01:41.9]} 17... Rxd8 {[%clk 0:02:01.6]} 18. Ra7
{[%clk 0:01:41.5]} 18... d5 {[%clk 0:01:52.8]} 19. Rc1 {[%clk 0:01:36.3]} 19...
Bd6 {[%clk 0:01:51.4]} 20. exd5 {[%clk 0:01:29.2]} 20... Ke7 {[%clk 0:01:50.4]}
21. f4 {[%clk 0:01:22.5]} 21... e4 {[%clk 0:01:46.1]} 22. f5 {[%clk 0:01:17.2]}
22... g6 {[%clk 0:01:35.9]} 23. f6+ {[%clk 0:01:12.4]} 23... Kxf6 {[%clk
0:01:34]} 24. Bxd7 {[%clk 0:01:05]} 24... Ke5 {[%clk 0:01:32.2]} 25. Bc6 {[%clk
0:01:02]} 25... f5 {[%clk 0:01:31.9]} 26. Kf2 {[%clk 0:00:54]} 26... Rb8 {[%clk
0:01:31.4]} 27. Rc3 {[%clk 0:00:49.4]} 27... Bb4 {[%clk 0:01:29.2]} 28. Rc4
{[%clk 0:00:48]} 28... Bd6 {[%clk 0:01:28.8]} 29. g3 {[%clk 0:00:45.6]} 29...
Rxb3 {[%clk 0:01:27.8]} 30. Ra2 {[%clk 0:00:40.1]} 30... Rhb8 {[%clk 0:01:27.2]}
31. Rc2 {[%clk 0:00:39.4]} 31... g5 {[%clk 0:01:27]} 32. Ba4 {[%clk 0:00:37]}
32... Rf3+ {[%clk 0:01:24.2]} 33. Kg2 {[%clk 0:00:35.2]} 33... Kf6 {[%clk
0:01:24.6]} 34. Rc6 {[%clk 0:00:34.1]} 34... Ke7 {[%clk 0:01:12.5]} 35. g4
{[%clk 0:00:32.3]} 35... f4 {[%clk 0:01:08.6]} 36. Bc2 {[%clk 0:00:29.6]} 36...
Rg3+ {[%clk 0:01:03.5]} 37. Kf1 {[%clk 0:00:27.2]} 37... Rb7 {[%clk 0:00:52.4]}
38. Bxe4 {[%clk 0:00:25.5]} 38... Re3 {[%clk 0:00:49]} 39. Bf5 {[%clk
0:00:23.6]} 39... f3 {[%clk 0:00:47.7]} 40. Raa6 {[%clk 0:00:18.9]} 40... Bg3
{[%clk 0:00:46.5]} 41. Re6+ {[%clk 0:00:18.1]} 41... Rxe6 {[%clk 0:00:46.8]} 42.
Rxe6+ {[%clk 0:00:17.6]} 42... Kf7 {[%clk 0:00:47.2]} 43. d6 {[%clk 0:00:15.8]}
43... Rxb2 {[%clk 0:00:44.1]} 44. Re7+ {[%clk 0:00:15.6]} 44... Kf6 {[%clk
0:00:43.6]} 45. Re3 {[%clk 0:00:15.6]} 45... Rf2+ {[%clk 0:00:39.4]} 46. Kg1
{[%clk 0:00:15.2]} 46... Rg2+ {[%clk 0:00:37.4]} 47. Kf1 {[%clk 0:00:14.9]}
47... Rf2+ {[%clk 0:00:28.2]} 48. Kg1 {[%clk 0:00:15]} 48... Rd2 {[%clk
0:00:19.1]} 49. Rxf3 {[%clk 0:00:14.3]} 49... Bxd6 {[%clk 0:00:19.3]} 50. Bxh7+
{[%clk 0:00:13.6]} 50... Bf4 {[%clk 0:00:19.9]} 51. Bf5 {[%clk 0:00:13.3]} 51...
Rd1+ {[%clk 0:00:19.1]} 52. Kg2 {[%clk 0:00:13.1]} 52... Ke5 {[%clk 0:00:19.2]}
53. Rf2 {[%clk 0:00:13]} 53... Kd4 {[%clk 0:00:18.5]} 54. Re2 {[%clk 0:00:13.1]}
54... Be3 {[%clk 0:00:17.9]} 55. h4 {[%clk 0:00:12.4]} 55... gxh4 {[%clk
0:00:17.2]} 56. g5 {[%clk 0:00:12.7]} 56... Bxg5 {[%clk 0:00:15.6]} 57. Bg4
{[%clk 0:00:11.6]} 57... Rd3 {[%clk 0:00:14.3]} 58. Bf5 {[%clk 0:00:10.9]} 58...
Rg3+ {[%clk 0:00:14.3]} 59. Kh2 {[%clk 0:00:10.9]} 59... Be3 {[%clk 0:00:14.8]}
60. Bh7 {[%clk 0:00:08.4]} 60... Ke5 {[%clk 0:00:15.1]} 61. Bc2 {[%clk
0:00:06.7]} 61... Kf4 {[%clk 0:00:15.4]} 62. Rg2 {[%clk 0:00:06.7]} 62... Rf3
{[%clk 0:00:13.1]} 63. Bd3 {[%clk 0:00:06.7]} 63... Bf2 {[%clk 0:00:13.1]} 64.
Be2 {[%clk 0:00:06.4]} 64... Bg3+ {[%clk 0:00:13.6]} 65. Kg1 {[%clk 0:00:06.4]}
65... Rc3 {[%clk 0:00:13.3]} 66. Bf1 {[%clk 0:00:06.7]} 66... Rc1 {[%clk
0:00:13.4]} 67. Ra2 {[%clk 0:00:05.9]} 67... h3 {[%clk 0:00:13.6]} 68. Ra4+
{[%clk 0:00:05.4]} 68... Kf5 {[%clk 0:00:13.8]} 69. Ra3 {[%clk 0:00:05.4]} 69...
h2+ {[%clk 0:00:12.9]} 70. Kg2 {[%clk 0:00:05.4]} 70... Rxf1 {[%clk 0:00:13.1]}
0-1

[Event "Early-Titled-Tuesday-Blitz-June-18-2024"]
[Site "Chess.com"]
[Date "2024.06.18"]
[Round "1"]
[White "jaskol95"]
[Black "Hirna2005"]
[Result "0-1"]
[WhiteElo "2606"]
[BlackElo "2291"]
[TimeControl "180+1"]
[EndTime "8:08:55 PDT"]
[Termination "Hirna2005 won by checkmate"]

1. e4 {[%clk 0:03:00.9]} 1... g6 {[%clk 0:03:00.6]} 2. d4 {[%clk 0:03:00.2]}
2... Bg7 {[%clk 0:03:01.2]} 3. Nc3 {[%clk 0:03:00.8]} 3... d6 {[%clk 0:03:01.1]}
4. Bf4 {[%clk 0:03:00.8]} 4... a6 {[%clk 0:03:00.6]} 5. a4 {[%clk 0:03:00.3]}
5... Nc6 {[%clk 0:03:00.4]} 6. Nf3 {[%clk 0:03:00.4]} 6... Nxd4 {[%clk
0:02:57.7]} 7. Nxd4 {[%clk 0:02:56.6]} 7... e5 {[%clk 0:02:57.9]} 8. Be3 {[%clk
0:02:50.4]} 8... exd4 {[%clk 0:02:58]} 9. Bxd4 {[%clk 0:02:51.3]} 9... Nf6
{[%clk 0:02:55.4]} 10. Bc4 {[%clk 0:02:49.7]} 10... O-O {[%clk 0:02:54.9]} 11.
O-O {[%clk 0:02:49.8]} 11... Be6 {[%clk 0:02:54]} 12. Bxe6 {[%clk 0:02:34.6]}
12... fxe6 {[%clk 0:02:53.7]} 13. e5 {[%clk 0:02:35.2]} 13... dxe5 {[%clk
0:02:43.3]} 14. Bxe5 {[%clk 0:02:35.1]} 14... Nd5 {[%clk 0:02:43.6]} 15. Bxg7
{[%clk 0:02:33.4]} 15... Kxg7 {[%clk 0:02:43.8]} 16. Qd4+ {[%clk 0:02:32.2]}
16... Qf6 {[%clk 0:02:43.9]} 17. Qxf6+ {[%clk 0:02:19.4]} 17... Rxf6 {[%clk
0:02:37.2]} 18. Ne4 {[%clk 0:02:18.6]} 18... Rf4 {[%clk 0:02:29.8]} 19. Nc5
{[%clk 0:01:52.8]} 19... Rc4 {[%clk 0:02:25.6]} 20. Nxe6+ {[%clk 0:01:18.6]}
20... Kf6 {[%clk 0:02:23.5]} 21. Rae1 {[%clk 0:01:15.8]} 21... Rxc2 {[%clk
0:02:07]} 22. b3 {[%clk 0:01:09.3]} 22... Re8 {[%clk 0:01:58.2]} 23. Nd4 {[%clk
0:00:49.1]} 23... Rxe1 {[%clk 0:01:56.6]} 24. Rxe1 {[%clk 0:00:50]} 24... Rb2
{[%clk 0:01:55.1]} 25. g3 {[%clk 0:00:49.1]} 25... Nc3 {[%clk 0:01:50.2]} 26.
Rc1 {[%clk 0:00:43.2]} 26... Rb1 {[%clk 0:01:50.3]} 27. Rxb1 {[%clk 0:00:43]}
27... Nxb1 {[%clk 0:01:50.5]} 28. f4 {[%clk 0:00:41]} 28... Nd2 {[%clk
0:01:46.5]} 29. b4 {[%clk 0:00:41.5]} 29... Ne4 {[%clk 0:01:41.6]} 30. Kg2
{[%clk 0:00:36.9]} 30... Nc3 {[%clk 0:01:41.4]} 31. a5 {[%clk 0:00:34.2]} 31...
Nd5 {[%clk 0:01:41.1]} 32. b5 {[%clk 0:00:34.3]} 32... axb5 {[%clk 0:01:33.5]}
33. Nxb5 {[%clk 0:00:35.2]} 33... Ke6 {[%clk 0:01:30.5]} 34. Kf3 {[%clk
0:00:35.7]} 34... Kd7 {[%clk 0:01:30.1]} 35. Ke4 {[%clk 0:00:35]} 35... c6
{[%clk 0:01:27.2]} 36. Nd4 {[%clk 0:00:33.6]} 36... Kd6 {[%clk 0:01:26.2]} 37.
f5 {[%clk 0:00:32.7]} 37... gxf5+ {[%clk 0:01:11.3]} 38. Kxf5 {[%clk 0:00:32.7]}
38... c5 {[%clk 0:01:11.7]} 39. Nc2 {[%clk 0:00:31.1]} 39... Nb4 {[%clk
0:01:09.3]} 40. Ne3 {[%clk 0:00:29.2]} 40... Nc6 {[%clk 0:01:06.4]} 41. Kg5
{[%clk 0:00:25.4]} 41... Nxa5 {[%clk 0:01:06.4]} 42. Kh6 {[%clk 0:00:25.6]}
42... b5 {[%clk 0:01:06.6]} 43. Kxh7 {[%clk 0:00:26.1]} 43... b4 {[%clk
0:01:07]} 44. g4 {[%clk 0:00:26.2]} 44... b3 {[%clk 0:01:07.3]} 45. Nd1 {[%clk
0:00:25.8]} 45... Kd5 {[%clk 0:00:48.2]} 46. g5 {[%clk 0:00:26]} 46... Nc6
{[%clk 0:00:48.5]} 47. Kg7 {[%clk 0:00:19.4]} 47... Kd4 {[%clk 0:00:48.1]} 48.
Kf6 {[%clk 0:00:16.6]} 48... c4 {[%clk 0:00:47.7]} 49. g6 {[%clk 0:00:16.8]}
49... c3 {[%clk 0:00:39.5]} 50. g7 {[%clk 0:00:09.8]} 50... c2 {[%clk
0:00:39.6]} 51. Nf2 {[%clk 0:00:04.2]} 51... c1=Q {[%clk 0:00:36.4]} 52. g8=Q
{[%clk 0:00:04.6]} 52... Qf4+ {[%clk 0:00:35.9]} 53. Ke6 {[%clk 0:00:05.1]}
53... Qe5+ {[%clk 0:00:31.3]} 54. Kd7 {[%clk 0:00:05.3]} 54... Qd5+ {[%clk
0:00:31.4]} 55. Qxd5+ {[%clk 0:00:05]} 55... Kxd5 {[%clk 0:00:31.6]} 56. Nd1
{[%clk 0:00:05.7]} 56... Ne5+ {[%clk 0:00:30.8]} 57. Ke7 {[%clk 0:00:06.2]}
57... Ke4 {[%clk 0:00:29.4]} 58. Kf6 {[%clk 0:00:05.7]} 58... Nf3 {[%clk
0:00:28.5]} 59. h3 {[%clk 0:00:05.4]} 59... Kd3 {[%clk 0:00:28.7]} 60. Kf5
{[%clk 0:00:04.6]} 60... Kc2 {[%clk 0:00:27.5]} 61. Ne3+ {[%clk 0:00:05.2]}
61... Kd2 {[%clk 0:00:27]} 62. Nc4+ {[%clk 0:00:05.5]} 62... Kc3 {[%clk
0:00:27.3]} 63. Na3 {[%clk 0:00:06]} 63... Nd4+ {[%clk 0:00:25.6]} 64. Ke4
{[%clk 0:00:05.9]} 64... Nc2 {[%clk 0:00:24.3]} 65. Nb5+ {[%clk 0:00:05.5]}
65... Kc4 {[%clk 0:00:24.3]} 66. Nd6+ {[%clk 0:00:05.1]} 66... Kc5 {[%clk
0:00:24.4]} 67. Kd3 {[%clk 0:00:01.8]} 67... Kxd6 {[%clk 0:00:20.9]} 68. Kc3
{[%clk 0:00:02.3]} 68... Nd4 {[%clk 0:00:21]} 69. h4 {[%clk 0:00:02.6]} 69...
Ke6 {[%clk 0:00:21.3]} 70. Kd3 {[%clk 0:00:03.2]} 70... Kf5 {[%clk 0:00:21.4]}
71. Kc3 {[%clk 0:00:04.1]} 71... Kg4 {[%clk 0:00:21.6]} 72. Kb2 {[%clk 0:00:05]}
72... Kxh4 {[%clk 0:00:22.1]} 73. Ka1 {[%clk 0:00:05.6]} 73... Kg4 {[%clk
0:00:22.8]} 74. Kb2 {[%clk 0:00:06.3]} 74... Kf4 {[%clk 0:00:23.5]} 75. Kc3
{[%clk 0:00:06.9]} 75... Ke4 {[%clk 0:00:24]} 76. Kb2 {[%clk 0:00:07.6]} 76...
Kd3 {[%clk 0:00:23.8]} 77. Ka1 {[%clk 0:00:07.3]} 77... Kc4 {[%clk 0:00:23.9]}
78. Kb2 {[%clk 0:00:07.8]} 78... Kb4 {[%clk 0:00:24.3]} 79. Ka1 {[%clk
0:00:08.4]} 79... Ka3 {[%clk 0:00:24.3]} 80. Kb1 {[%clk 0:00:09.3]} 80... Nc2
{[%clk 0:00:24.3]} 81. Kc1 {[%clk 0:00:09.5]} 81... Ka2 {[%clk 0:00:24.7]} 82.
Kd2 {[%clk 0:00:10.1]} 82... b2 {[%clk 0:00:25.2]} 83. Kd1 {[%clk 0:00:10.8]}
83... b1=Q+ {[%clk 0:00:25.3]} 84. Kd2 {[%clk 0:00:11.7]} 84... Nb4 {[%clk
0:00:25.4]} 85. Kc3 {[%clk 0:00:12.2]} 85... Qb3+ {[%clk 0:00:24.2]} 86. Kd2
{[%clk 0:00:11.6]} 86... Ka3 {[%clk 0:00:23.8]} 87. Kc1 {[%clk 0:00:11.9]} 87...
Qa2 {[%clk 0:00:22.2]} 88. Kd1 {[%clk 0:00:12.2]} 88... Kb3 {[%clk 0:00:22.1]}
89. Kc1 {[%clk 0:00:12.6]} 89... Qc2# {[%clk 0:00:21.4]} 0-1